fUST/lending_fUST_20241123
["ID","MTS","AMOUNT","RATE_DAILY","PERIOD"]
[343105788,1732361432406,-500.0,0.00017799,2]
[343105789,1732361432415,-500.0,0.00017799,2]
[343105790,1732361432424,-500.0,0.00017799,2]
[343105791,1732361432433,-500.0,0.00017799,2]
[343105792,1732361432443,-500.0,0.00017799,2]
[343105793,1732361432452,-160.2588478,0.00017799,2]
[343105794,1732361432461,-519.67291456,0.00017799,2]
[343105795,1732361432471,-200.0,0.00017799,2]
[343105796,1732361432480,-500.0,0.00017799,2]
[343105797,1732361432490,-10688.34896475,0.000178,2]
[343105798,1732361432521,-19811.34611881,0.000178,2]
[343105800,1732361438191,-602.75107292,0.00017622,2]
[343105802,1732361438201,-39490.65158924,0.000178,2]
[343105831,1732361439889,-638.36546201,0.000178,2]
[343105866,1732361443180,-3375.93583052,0.000178,2]
[343105893,1732361806213,5516.52437597,0.00029614,120]
[343105894,1732361821270,333.39279,0.000294,120]
[343105895,1732361839719,5500.0,0.00029121,120]
[343105896,1732361877586,1333.0,0.00029041,120]
[343105918,1732361927915,1381.9,0.00028813,120]
[343106006,1732362632203,-175.124131,0.0001346,2]
[343106007,1732362632213,-198.51204167,0.00013733,2]
[343106008,1732362632223,-194.99904237,0.00013733,2]
[343106009,1732362632233,-161.682008,0.00013973,2]
[343106010,1732362632243,-161.4152335,0.00015744,2]
[343106011,1732362632252,-1089.06124441,0.00016398,2]
[343106012,1732362632262,-283.0,0.00016407,2]
[343106013,1732362632271,-24900.0,0.00016408,2]
[343106014,1732362632281,-1951.988992,0.00016408,2]
[343106015,1732362632291,-169.491556,0.000169,2]
[343106016,1732362632300,-169.491556,0.00016921,2]
[343106017,1732362632310,-169.491556,0.00016942,2]
[343106018,1732362632320,-169.491556,0.00016963,2]
[343106019,1732362632330,-169.491556,0.00016984,2]
[343106020,1732362632340,-1951.988992,0.00017093,2]
[343106021,1732362632351,-152.0,0.00017567,2]
[343106022,1732362632361,-4367.59836697,0.00017578,2]
[343106023,1732362632491,-641.45209674,0.00017678,2]
[343106024,1732362632503,-241.87002174,0.00017699,2]
[343106025,1732362632514,-500.0,0.00017699,2]
[343106026,1732362632524,-500.0,0.00017699,2]
[343106027,1732362632533,-500.0,0.00017699,2]
[343106028,1732362632543,-500.0,0.00017699,2]
[343106029,1732362632553,-500.0,0.00017699,2]
[343106030,1732362632563,-500.0,0.00017699,2]
[343106031,1732362632573,-500.0,0.00017699,2]
[343106032,1732362632583,-500.0,0.00017699,2]
[343106033,1732362632592,-500.0,0.00017699,2]
[343106034,1732362632602,-500.0,0.00017699,2]
[343106035,1732362632611,-401.3162974,0.00017699,2]
[343106036,1732362632621,-500.0,0.00017699,2]
[343106037,1732362632631,-152.35549628,0.00017699,2]
[343106038,1732362632646,-315.05818574,0.00017699,2]
[343106039,1732362632656,-500.0,0.00017699,2]
[343106040,1732362632665,-500.0,0.00017699,2]
[343106041,1732362632675,-500.0,0.00017699,2]
[343106042,1732362632687,-448.12818023,0.00017699,2]
[343106043,1732362632699,-51.87181977,0.00017699,2]
[343106044,1732362632708,-453.09196123,0.00017699,2]
[343106106,1732362643975,-46.90803877,0.00017699,2]
[343106107,1732362643986,-500.0,0.00017699,2]
[343106109,1732362643996,-500.0,0.00017699,2]
[343106110,1732362644006,-500.0,0.00017699,2]
[343106111,1732362644017,-500.0,0.00017699,2]
[343106112,1732362644027,-500.0,0.00017699,2]
[343106113,1732362644037,-500.0,0.00017699,2]
[343106114,1732362644047,-500.0,0.00017699,2]
[343106115,1732362644056,-299.45486859,0.00017699,2]
[343106116,1732362644066,-500.0,0.00017699,2]
[343106117,1732362644078,-500.0,0.00017699,2]
[343106118,1732362644088,-500.0,0.00017699,2]
[343106119,1732362644097,-500.0,0.00017699,2]
[343106120,1732362644106,-127.59990026,0.000177,2]
[343106121,1732362644123,-5965.21246005,0.000177,2]
[343106122,1732362644135,-1355.32620962,0.000177,2]
[343106123,1732362644146,-24505.0,0.000177,2]
[343106124,1732362644172,-95160.15829905,0.000177,2]
[343106126,1732362644185,-492.1,0.000177,2]
[343106298,1732363410733,-158.1795772,0.00023,36]
[343106299,1732363410832,-1078.6717,0.00024988,30]
[343106300,1732363410879,-200.73506089,0.00027,60]
[343106301,1732363410904,-188.0,0.00027397,30]
[343106302,1732363410931,-188.0,0.00027397,30]
[343106303,1732363410955,-188.0,0.00027397,30]
[343106304,1732363410978,-188.0,0.00027397,30]
[343106305,1732363411001,-188.0,0.00027397,30]
[343106306,1732363411024,-188.0,0.00027397,30]
[343106307,1732363411048,-188.0,0.00027397,30]
[343106308,1732363411070,-188.0,0.00027397,30]
[343106309,1732363411094,-188.0,0.00027397,30]
[343106310,1732363411117,-188.0,0.00027397,30]
[343106311,1732363411142,-188.0,0.00027397,30]
[343106312,1732363411166,-155.89301084,0.00027397,30]
[343106313,1732363411192,-400.64118973,0.00027397,60]
[343106314,1732363411215,-3345.34128524,0.000275,30]
[343106315,1732363411239,-518497.72210462,0.00028,30]
[343106316,1732363411262,-83045.53382478,0.00028,30]
[343106318,1732363559466,3345.34128524,0.00027,30]
[343106319,1732363559489,1654.65871476,0.00027,30]
[343106320,1732363582252,569.23429608,0.00027,30]
[343106331,1732363734672,-351.11,0.00010959,2]
[343106332,1732363734707,-292.59,0.00010959,2]
[343106333,1732363734743,-161.682008,0.00013973,2]
[343106334,1732363734771,-650.662997,0.00016906,2]
[343106335,1732363734796,-10504.80570193,0.0001743,2]
[343106336,1732363735063,-650.662997,0.00017591,2]
[343106337,1732363735112,-300.0,0.00017796,2]
[343106338,1732363735138,-395.98861059,0.00017797,2]
[343106339,1732363735161,-150.489,0.00017797,2]
[343106340,1732363735185,-531.264,0.00017797,2]
[343106341,1732363735208,-1105.0,0.00017797,2]
[343106342,1732363735233,-2380.0,0.00017797,2]
[343106343,1732363735257,-2575.07650966,0.00017899,2]
[343106344,1732363735282,-500.0,0.00017899,2]
[343106345,1732363735307,-366.60609651,0.00017899,2]
[343106346,1732363735332,-423.89535397,0.00017899,2]
[343106347,1732363735356,-183.59505514,0.00017899,2]
[343106348,1732363735381,-500.0,0.00017899,2]
[343106349,1732363735406,-500.0,0.00017899,2]
[343106350,1732363735430,-500.0,0.00017899,2]
[343106351,1732363735453,-500.0,0.00017899,2]
[343106352,1732363735478,-500.0,0.00017899,2]
[343106353,1732363735500,-167.63384103,0.00017899,2]
[343106355,1732363735524,-500.0,0.00017899,2]
[343106356,1732363735548,-433.60578242,0.00017899,2]
[343106357,1732363735573,-300.0,0.00017899,2]
[343106358,1732363735596,-500.0,0.00017899,2]
[343106359,1732363735621,-500.0,0.00017899,2]
[343106360,1732363735646,-500.0,0.00017899,2]
[343106361,1732363735672,-280.78701576,0.00017899,2]
[343106362,1732363735697,-500.0,0.00017899,2]
[343106363,1732363735729,-500.0,0.00017899,2]
[343106364,1732363735754,-500.0,0.00017899,2]
[343106365,1732363735778,-500.0,0.00017899,2]
[343106366,1732363735802,-537.37242322,0.00017899,2]
[343106367,1732363735826,-500.0,0.00017899,2]
[343106368,1732363735851,-500.0,0.00017899,2]
[343106369,1732363735875,-500.0,0.00017899,2]
[343106370,1732363735900,-500.0,0.00017899,2]
[343106371,1732363735924,-500.0,0.00017899,2]
[343106372,1732363735950,-342.3264453,0.00017899,2]
[343106373,1732363735979,-500.0,0.00017899,2]
[343106374,1732363736004,-300.0,0.00017899,2]
[343106375,1732363736030,-152.60671119,0.00017899,2]
[343106376,1732363736056,-500.0,0.00017899,2]
[343106377,1732363736079,-170.8263531,0.00017899,2]
[343106378,1732363736105,-500.0,0.00017899,2]
[343106379,1732363736130,-500.0,0.00017899,2]
[343106380,1732363736156,-403.18545774,0.00017899,2]
[343106381,1732363736180,-513.1616774,0.00017899,2]
[343106382,1732363736205,-161.24668116,0.000179,2]
[343106383,1732363736231,-286.8145136,0.000179,2]
[343106384,1732363736256,-250000.0,0.000179,2]
[343106385,1732363736284,-249.54721347,0.00017999,2]
[343106386,1732363736309,-229379.49,0.00018,4]
[343106387,1732363736334,-4998.24534178,0.00018,2]
[343106388,1732363736360,-260.098,0.00018,2]
[343106389,1732363736384,-200.0,0.000181,2]
[343106390,1732363736408,-500.0,0.000181,2]
[343106391,1732363736431,-500.0,0.00018198,2]
[343106392,1732363736455,-968.66311021,0.000182,2]
[343106393,1732363736480,-650.662997,0.00018276,2]
[343106394,1732363736504,-367157.42982618,0.000183,2]
[343106395,1732363736528,-500.0,0.000183,2]
[343106396,1732363736552,-500.0,0.000183,2]
[343106397,1732363736576,-201.2,0.00018441,2]
[343106398,1732363736600,-1000.0,0.00018648,2]
[343106399,1732363736628,-201.2,0.00018719,2]
[343106400,1732363736652,-201.2,0.00018997,2]
[343106401,1732363736677,-330.0,0.00019078,2]
[343106402,1732363736703,-151.0,0.000191,2]
[343106403,1732363736728,-157.08836831,0.00019173,2]
[343106404,1732363736753,-500.0,0.00019173,2]
[343106405,1732363736778,-500.0,0.00019173,2]
[343106406,1732363736801,-500.0,0.00019173,2]
[343106407,1732363736825,-278.51606668,0.00019173,2]
[343106408,1732363736849,-500.0,0.00019173,2]
[343106409,1732363736887,-500.0,0.00019178,2]
[343106410,1732363736916,-500.0,0.00019178,2]
[343106411,1732363737148,-500.0,0.00019178,2]
[343106412,1732363737175,-500.0,0.00019178,2]
[343106413,1732363737204,-500.0,0.00019178,2]
[343106414,1732363737236,-500.0,0.00019178,2]
[343106415,1732363737261,-547.90205608,0.00019178,2]
[343106416,1732363737287,-501.30774811,0.00019178,2]
[343106417,1732363737311,-500.0,0.00019178,2]
[343106418,1732363737338,-598.69047109,0.00019178,2]
[343106419,1732363737363,-500.0,0.00019178,2]
[343106420,1732363737388,-500.0,0.00019178,2]
[343106421,1732363737416,-535.85524409,0.00019178,2]
[343106422,1732363737443,-500.0,0.00019178,2]
[343106423,1732363737469,-503.80642129,0.00019178,2]
[343106424,1732363737494,-500.0,0.00019178,2]
[343106425,1732363737519,-500.0,0.00019178,2]
[343106426,1732363737543,-500.0,0.00019178,2]
[343106427,1732363737568,-500.0,0.00019178,2]
[343106428,1732363737593,-554.0245764,0.00019178,2]
[343106429,1732363737618,-501.26214729,0.00019178,2]
[343106430,1732363737644,-500.0,0.00019178,2]
[343106431,1732363737670,-500.0,0.00019178,2]
[343106432,1732363737696,-500.0,0.00019178,2]
[343106433,1732363737724,-529.83096445,0.00019178,2]
[343106434,1732363737750,-500.0,0.00019178,2]
[343106435,1732363737779,-515.30002767,0.00019178,2]
[343106436,1732363737804,-500.0,0.00019178,2]
[343106437,1732363737831,-500.0,0.00019178,2]
[343106438,1732363737857,-500.0,0.00019178,2]
[343106439,1732363737882,-500.0,0.00019178,2]
[343106440,1732363737911,-500.0,0.00019178,2]
[343106441,1732363737935,-804.92,0.00019178,2]
[343106442,1732363737959,-500.0,0.00019178,2]
[343106443,1732363737990,-500.0,0.00019178,2]
[343106444,1732363738013,-500.0,0.00019178,2]
[343106445,1732363738038,-151.806181,0.00019178,2]
[343106446,1732363738068,-415.40511286,0.00019178,2]
[343106447,1732363738092,-500.0,0.00019178,2]
[343106448,1732363738117,-548.61177222,0.00019178,2]
[343106449,1732363738142,-500.0,0.00019178,2]
[343106450,1732363738166,-500.0,0.00019178,2]
[343106451,1732363738191,-151.0,0.00019178,2]
[343106452,1732363738219,-151.719937,0.00019178,2]
[343106453,1732363738243,-500.0,0.00019178,2]
[343106454,1732363738268,-250.0,0.00019178,2]
[343106455,1732363738293,-500.0,0.00019178,2]
[343106456,1732363738318,-500.0,0.00019178,2]
[343106457,1732363738344,-500.0,0.00019178,2]
[343106458,1732363738372,-500.0,0.00019178,2]
[343106459,1732363738399,-500.0,0.00019178,2]
[343106460,1732363738423,-1424.86,0.00019178,2]
[343106461,1732363738447,-500.0,0.00019178,2]
[343106462,1732363738472,-1952.93,0.00019178,2]
[343106463,1732363738496,-549.4,0.00019178,2]
[343106464,1732363738520,-151.505311,0.00019178,2]
[343106465,1732363738544,-500.0,0.00019178,2]
[343106466,1732363738569,-500.0,0.00019178,2]
[343106467,1732363738594,-500.0,0.00019178,2]
[343106468,1732363738618,-500.0,0.00019178,2]
[343106469,1732363738644,-500.0,0.00019178,2]
[343106470,1732363738668,-500.0,0.00019178,2]
[343106471,1732363738694,-548.57882939,0.00019178,2]
[343106472,1732363738721,-500.0,0.00019178,2]
[343106473,1732363738754,-500.0,0.00019178,2]
[343106474,1732363738778,-500.0,0.00019178,2]
[343106475,1732363738802,-536.95305973,0.00019178,2]
[343106476,1732363738828,-500.0,0.00019178,2]
[343106477,1732363738852,-1177.73,0.00019178,2]
[343106478,1732363738876,-500.0,0.00019178,2]
[343106479,1732363738900,-500.0,0.00019178,2]
[343106480,1732363738926,-500.0,0.00019178,2]
[343106481,1732363738961,-500.0,0.00019178,2]
[343106482,1732363738994,-500.0,0.00019178,2]
[343106483,1732363739023,-500.0,0.00019178,2]
[343106484,1732363739050,-500.0,0.00019178,2]
[343106485,1732363739078,-1178.56,0.00019178,2]
[343106486,1732363739106,-500.0,0.00019178,2]
[343106487,1732363739133,-500.0,0.00019178,2]
[343106488,1732363739168,-500.0,0.00019178,2]
[343106489,1732363739197,-500.0,0.00019178,2]
[343106490,1732363739230,-500.0,0.00019178,2]
[343106491,1732363739258,-263.25530108,0.00019178,2]
[343106492,1732363739284,-500.0,0.00019178,2]
[343106493,1732363739310,-544.74566939,0.00019178,2]
[343106494,1732363739337,-500.0,0.00019178,2]
[343106495,1732363739363,-500.0,0.00019178,2]
[343106496,1732363739389,-500.0,0.00019178,2]
[343106497,1732363739417,-500.0,0.00019178,2]
[343106498,1732363739444,-500.0,0.00019178,2]
[343106499,1732363739472,-500.0,0.00019178,2]
[343106500,1732363739499,-503.24558813,0.00019178,2]
[343106501,1732363739526,-500.0,0.00019178,2]
[343106502,1732363739552,-500.0,0.00019178,2]
[343106503,1732363739577,-500.0,0.00019178,2]
[343106504,1732363739603,-500.0,0.00019178,2]
[343106505,1732363739628,-264.53359819,0.00019178,2]
[343106506,1732363739653,-500.0,0.00019178,2]
[343106507,1732363739678,-578.63904249,0.00019178,2]
[343106508,1732363739702,-346.28800627,0.00019178,2]
[343106509,1732363739728,-500.0,0.00019178,2]
[343106510,1732363739753,-500.0,0.00019178,2]
[343106511,1732363739778,-500.0,0.00019178,2]
[343106512,1732363739803,-816.47,0.00019178,2]
[343106513,1732363739993,-500.0,0.00019178,2]
[343106514,1732363740018,-500.0,0.00019178,2]
[343106515,1732363740043,-500.0,0.00019178,2]
[343106516,1732363740070,-500.0,0.00019178,2]
[343106517,1732363740097,-500.0,0.00019178,2]
[343106518,1732363740123,-500.0,0.00019178,2]
[343106519,1732363740150,-500.0,0.00019178,2]
[343106520,1732363740175,-500.0,0.00019178,2]
[343106521,1732363740201,-500.0,0.00019178,2]
[343106522,1732363740229,-500.0,0.00019178,2]
[343106523,1732363740255,-500.0,0.00019178,2]
[343106524,1732363740281,-500.0,0.00019178,2]
[343106525,1732363740307,-500.0,0.00019178,2]
[343106526,1732363740332,-500.0,0.00019178,2]
[343106527,1732363740358,-500.0,0.00019178,2]
[343106528,1732363740383,-500.0,0.00019178,2]
[343106529,1732363740409,-500.0,0.00019178,2]
[343106530,1732363740434,-467.71032992,0.00019178,2]
[343106531,1732363740460,-500.0,0.00019178,2]
[343106532,1732363740495,-500.0,0.00019178,2]
[343106533,1732363740518,-500.0,0.00019178,2]
[343106534,1732363740542,-500.0,0.00019178,2]
[343106535,1732363740566,-500.0,0.00019178,2]
[343106536,1732363740592,-500.0,0.00019178,2]
[343106537,1732363740615,-500.0,0.00019178,2]
[343106538,1732363740638,-500.0,0.00019178,2]
[343106539,1732363740667,-500.0,0.00019178,2]
[343106540,1732363740691,-500.0,0.00019178,2]
[343106541,1732363740718,-546.44840957,0.00019178,2]
[343106542,1732363740741,-150.91335918,0.00019178,2]
[343106543,1732363740765,-500.0,0.00019178,2]
[343106544,1732363740789,-500.0,0.00019178,2]
[343106545,1732363740813,-385.06590808,0.00019178,2]
[343106546,1732363740837,-500.0,0.00019178,2]
[343106547,1732363740860,-500.0,0.00019178,2]
[343106548,1732363740883,-500.0,0.00019178,2]
[343106549,1732363740905,-523.94091875,0.00019178,2]
[343106550,1732363740929,-500.0,0.00019178,2]
[343106551,1732363740952,-500.0,0.00019178,2]
[343106552,1732363740982,-500.0,0.00019178,2]
[343106553,1732363741005,-500.0,0.00019178,2]
[343106554,1732363741029,-543.81,0.00019178,2]
[343106555,1732363741054,-500.0,0.00019178,2]
[343106556,1732363741078,-505.68192286,0.00019178,2]
[343106557,1732363741102,-500.0,0.00019178,2]
[343106558,1732363741126,-500.0,0.00019178,2]
[343106559,1732363741151,-500.0,0.00019178,2]
[343106560,1732363741175,-500.0,0.00019178,2]
[343106561,1732363741199,-510.68026307,0.00019178,2]
[343106562,1732363741228,-500.0,0.00019178,2]
[343106563,1732363741252,-500.0,0.00019178,2]
[343106564,1732363741276,-500.0,0.00019178,2]
[343106565,1732363741300,-500.0,0.00019178,2]
[343106566,1732363741324,-500.0,0.00019178,2]
[343106567,1732363741348,-500.0,0.00019178,2]
[343106568,1732363741371,-152.34959903,0.00019178,2]
[343106569,1732363741394,-500.0,0.00019178,2]
[343106570,1732363741419,-500.0,0.00019178,2]
[343106571,1732363741443,-500.0,0.00019178,2]
[343106572,1732363741486,-500.0,0.00019178,2]
[343106573,1732363741510,-500.0,0.00019178,2]
[343106574,1732363741533,-500.0,0.00019178,2]
[343106575,1732363741563,-500.0,0.00019178,2]
[343106576,1732363741587,-347.10250375,0.00019178,2]
[343106577,1732363741614,-160.74421881,0.00019178,2]
[343106578,1732363741637,-500.0,0.00019178,2]
[343106579,1732363741660,-500.0,0.00019178,2]
[343106580,1732363741683,-500.0,0.00019178,2]
[343106581,1732363741709,-500.0,0.00019178,2]
[343106582,1732363741736,-500.0,0.00019178,2]
[343106583,1732363741760,-500.0,0.00019178,2]
[343106584,1732363741785,-500.0,0.00019178,2]
[343106585,1732363741809,-637.99698504,0.00019178,2]
[343106586,1732363741832,-500.0,0.00019178,2]
[343106587,1732363741856,-2279.09,0.00019178,2]
[343106588,1732363741880,-818.1,0.00019178,2]
[343106589,1732363741904,-500.0,0.00019178,2]
[343106590,1732363741937,-500.0,0.00019178,2]
[343106592,1732363741962,-530.24620442,0.00019178,2]
[343106593,1732363741991,-501.79720726,0.00019178,2]
[343106594,1732363742015,-500.0,0.00019178,2]
[343106595,1732363742039,-500.0,0.00019178,2]
[343106596,1732363742064,-500.0,0.00019178,2]
[343106597,1732363742088,-184.40526562,0.00019178,2]
[343106598,1732363742112,-500.0,0.00019178,2]
[343106599,1732363742136,-1477.59,0.00019178,2]
[343106600,1732363742159,-500.0,0.00019178,2]
[343106601,1732363742182,-500.0,0.00019178,2]
[343106602,1732363742206,-500.0,0.00019178,2]
[343106603,1732363742231,-500.0,0.00019178,2]
[343106604,1732363742255,-369.15835018,0.00019178,2]
[343106605,1732363742280,-500.0,0.00019178,2]
[343106606,1732363742310,-500.0,0.00019178,2]
[343106607,1732363742334,-3389.13,0.00019178,2]
[343106608,1732363742357,-500.0,0.00019178,2]
[343106609,1732363742383,-500.0,0.00019178,2]
[343106610,1732363742406,-247.35446465,0.00019178,2]
[343106611,1732363742431,-500.0,0.00019178,2]
[343106612,1732363742571,-2266.58,0.00019178,2]
[343106613,1732363742594,-500.0,0.00019178,2]
[343106614,1732363742618,-504.4905339,0.00019178,2]
[343106615,1732363742643,-500.0,0.00019178,2]
[343106616,1732363742667,-206.00753301,0.00019178,2]
[343106617,1732363742692,-500.0,0.00019178,2]
[343106618,1732363742715,-500.0,0.00019178,2]
[343106619,1732363742740,-500.0,0.00019178,2]
[343106620,1732363742764,-500.0,0.00019178,2]
[343106621,1732363742788,-500.0,0.00019178,2]
[343106622,1732363742812,-500.0,0.00019178,2]
[343106623,1732363742835,-500.0,0.00019178,2]
[343106624,1732363742859,-500.0,0.00019178,2]
[343106625,1732363742883,-500.0,0.00019178,2]
[343106626,1732363742908,-500.0,0.00019178,2]
[343106627,1732363742934,-536.92157279,0.00019178,2]
[343106628,1732363742958,-500.0,0.00019178,2]
[343106629,1732363742985,-500.0,0.00019178,2]
[343106630,1732363743009,-500.0,0.00019178,2]
[343106631,1732363743033,-500.0,0.00019178,2]
[343106632,1732363743058,-500.0,0.00019178,2]
[343106633,1732363743083,-500.0,0.00019178,2]
[343106634,1732363743110,-500.0,0.00019178,2]
[343106635,1732363743134,-500.0,0.00019178,2]
[343106636,1732363743164,-175.15428412,0.00019178,2]
[343106637,1732363743192,-521.67052369,0.00019178,2]
[343106638,1732363743221,-500.0,0.00019178,2]
[343106639,1732363743247,-1440.12,0.00019178,2]
[343106640,1732363743275,-500.0,0.00019178,2]
[343106641,1732363743304,-500.0,0.00019178,2]
[343106642,1732363743330,-523.27055632,0.00019178,2]
[343106643,1732363743354,-500.0,0.00019178,2]
[343106644,1732363743378,-151.0,0.00019178,2]
[343106645,1732363743402,-500.0,0.00019178,2]
[343106646,1732363743426,-151.0,0.00019178,2]
[343106647,1732363743450,-151.0,0.00019178,2]
[343106648,1732363743480,-151.0,0.00019178,2]
[343106649,1732363743504,-165.901043,0.00019178,2]
[343106650,1732363743528,-1494.84,0.00019178,2]
[343106651,1732363743553,-500.0,0.00019178,2]
[343106652,1732363743577,-500.0,0.00019178,2]
[343106653,1732363743601,-500.0,0.00019178,2]
[343106654,1732363743625,-500.0,0.00019178,2]
[343106655,1732363743651,-500.0,0.00019178,2]
[343106656,1732363743676,-500.0,0.00019178,2]
[343106657,1732363743700,-301.74199788,0.00019178,2]
[343106658,1732363743729,-545.68,0.00019178,2]
[343106659,1732363743755,-500.0,0.00019178,2]
[343106660,1732363743778,-500.0,0.00019178,2]
[343106661,1732363743802,-522.24677589,0.00019178,2]
[343106662,1732363743827,-500.0,0.00019178,2]
[343106663,1732363743852,-500.0,0.00019178,2]
[343106664,1732363743877,-500.0,0.00019178,2]
[343106665,1732363743903,-637.1269258,0.00019178,2]
[343106666,1732363743929,-166.91884585,0.00019178,2]
[343106667,1732363743953,-500.0,0.00019178,2]
[343106668,1732363743982,-500.0,0.00019178,2]
[343106669,1732363744007,-500.0,0.00019178,2]
[343106670,1732363744033,-500.0,0.00019178,2]
[343106671,1732363744057,-500.0,0.00019178,2]
[343106672,1732363744083,-500.0,0.00019178,2]
[343106673,1732363744111,-500.0,0.00019178,2]
[343106674,1732363744135,-500.0,0.00019178,2]
[343106675,1732363744159,-500.0,0.00019178,2]
[343106676,1732363744183,-500.0,0.00019178,2]
[343106677,1732363744207,-547.5419048,0.00019178,2]
[343106678,1732363744234,-500.0,0.00019178,2]
[343106679,1732363744258,-500.0,0.00019178,2]
[343106680,1732363744282,-500.0,0.00019178,2]
[343106681,1732363744306,-500.0,0.00019178,2]
[343106682,1732363744329,-500.0,0.00019178,2]
[343106683,1732363744353,-660.32,0.00019178,2]
[343106684,1732363744378,-500.0,0.00019178,2]
[343106685,1732363744402,-500.0,0.00019178,2]
[343106686,1732363744427,-500.0,0.00019178,2]
[343106687,1732363744453,-500.0,0.00019178,2]
[343106688,1732363744479,-500.0,0.00019178,2]
[343106689,1732363744504,-500.0,0.00019178,2]
[343106690,1732363744528,-488.02307545,0.00019178,2]
[343106691,1732363744553,-500.0,0.00019178,2]
[343106692,1732363744576,-500.0,0.00019178,2]
[343106693,1732363744600,-303.40233054,0.00019178,2]
[343106694,1732363744623,-573.87,0.00019178,2]
[343106695,1732363744647,-500.0,0.00019178,2]
[343106696,1732363744672,-500.0,0.00019178,2]
[343106697,1732363744697,-500.0,0.00019178,2]
[343106698,1732363744724,-500.0,0.00019178,2]
[343106699,1732363744750,-500.0,0.00019178,2]
[343106700,1732363744778,-500.0,0.00019178,2]
[343106701,1732363744802,-500.0,0.00019178,2]
[343106702,1732363744827,-500.0,0.00019178,2]
[343106703,1732363744851,-500.0,0.00019178,2]
[343106704,1732363744876,-2025.79,0.00019178,2]
[343106705,1732363744901,-564.18542816,0.00019178,2]
[343106706,1732363745038,-500.0,0.00019178,2]
[343106707,1732363745063,-501.42607717,0.00019178,2]
[343106708,1732363745089,-526.89,0.00019178,2]
[343106709,1732363745114,-500.0,0.00019178,2]
[343106710,1732363745140,-500.0,0.00019178,2]
[343106711,1732363745164,-500.0,0.00019178,2]
[343106712,1732363745189,-500.0,0.00019178,2]
[343106713,1732363745213,-500.0,0.00019178,2]
[343106714,1732363745239,-500.0,0.00019178,2]
[343106715,1732363745263,-500.0,0.00019178,2]
[343106716,1732363745287,-500.0,0.00019178,2]
[343106717,1732363745310,-500.0,0.00019178,2]
[343106718,1732363745335,-500.0,0.00019178,2]
[343106719,1732363745360,-500.0,0.00019178,2]
[343106720,1732363745385,-500.0,0.00019178,2]
[343106721,1732363745409,-500.0,0.00019178,2]
[343106722,1732363745433,-648.17,0.00019178,2]
[343106723,1732363745456,-500.0,0.00019178,2]
[343106724,1732363745488,-500.0,0.00019178,2]
[343106725,1732363745512,-500.0,0.00019178,2]
[343106726,1732363745536,-500.0,0.00019178,2]
[343106727,1732363745560,-2792.79,0.00019178,2]
[343106728,1732363745584,-500.0,0.00019178,2]
[343106729,1732363745609,-501.70895087,0.00019178,2]
[343106730,1732363745632,-500.0,0.00019178,2]
[343106731,1732363745656,-1186.81,0.00019178,2]
[343106732,1732363745680,-500.0,0.00019178,2]